[Event "Titled Tuesday Blitz January 31 Late 2023"]
[White "Boder, Jan"]
[Black "Karolczuk, Iwo"]
[WhiteFideId "16243226"]
[BlackFideId "21816972"]
[WhiteElo "2294"]
[BlackElo "2343"]
[Result "0-1"]
[Round "01"]
[TimeControl "180+2"]
[Date "2023.01.31"]
[WhiteClock "0:00:07"]
[BlackClock "0:00:06"]

1. c4 {[%clk 0:02:59]}  e5 {[%clk 0:02:59]} 2. g3 {[%clk 0:02:58]}  Nc6 {[%clk 0:02:58]} 3. Bg2 {[%clk 0:02:58]}  f5 {[%clk 0:02:58]} 4. Nc3 {[%clk 0:02:58]}  Nf6 {[%clk 0:02:58]} 5. e3 {[%clk 0:02:59]}  g6 {[%clk 0:02:58]} 6. Nge2 {[%clk 0:02:59]}  Bg7 {[%clk 0:02:55]} 7. O-O {[%clk 0:03:00]}  O-O {[%clk 0:02:55]} 8. d3 {[%clk 0:02:59]}  d6 {[%clk 0:02:53]} 9. Rb1 {[%clk 0:02:58]}  a5 {[%clk 0:02:53]} 10. a3 {[%clk 0:02:58]}  Be6 {[%clk 0:02:50]} 11. b4 {[%clk 0:02:58]}  axb4 {[%clk 0:02:50]} 12. axb4 {[%clk 0:02:59]}  Qd7 {[%clk 0:02:50]} 13. b5 {[%clk 0:02:59]}  Nd8 {[%clk 0:02:50]} 14. Nd5 {[%clk 0:02:55]}  Nxd5 {[%clk 0:02:49]} 15. cxd5 {[%clk 0:02:54]}  Bf7 {[%clk 0:02:48]} 16. e4 {[%clk 0:02:50]}  b6 {[%clk 0:02:46]} 17. Qc2 {[%clk 0:02:25]}  Nb7 {[%clk 0:02:45]} 18. Be3 {[%clk 0:02:26]}  Nc5 {[%clk 0:02:40]} 19. Bxc5 {[%clk 0:02:25]}  bxc5 {[%clk 0:02:37]} 20. b6 {[%clk 0:02:25]}  Rfb8 {[%clk 0:02:32]} 21. bxc7 {[%clk 0:02:14]}  Qxc7 {[%clk 0:02:33]} 22. Nc3 {[%clk 0:02:14]}  Be8 {[%clk 0:02:31]} 23. Rxb8 {[%clk 0:02:12]}  Rxb8 {[%clk 0:02:29]} 24. Rb1 {[%clk 0:02:12]}  Rb4 {[%clk 0:02:21]} 25. Na2 {[%clk 0:01:56]}  Rb6 {[%clk 0:01:52]} 26. Nc3 {[%clk 0:01:52]}  Bh6 {[%clk 0:01:31]} 27. Bf1 {[%clk 0:01:50]}  Bd7 {[%clk 0:01:22]} 28. Nd1 {[%clk 0:01:44]}  Kf7 {[%clk 0:01:08]} 29. Rxb6 {[%clk 0:01:42]}  Qxb6 {[%clk 0:01:08]} 30. Nb2 {[%clk 0:01:43]}  Ke7 {[%clk 0:01:06]} 31. Nc4 {[%clk 0:01:43]}  Qb4 {[%clk 0:01:06]} 32. Qa2 {[%clk 0:01:41]}  Ba4 {[%clk 0:01:03]} 33. Nb2 {[%clk 0:01:34]}  Bd7 {[%clk 0:01:02]} 34. Nc4 {[%clk 0:01:34]}  Qa4 {[%clk 0:00:59]} 35. Qb1 {[%clk 0:01:31]}  Bb5 {[%clk 0:00:55]} 36. Nb6 {[%clk 0:01:02]}  Qb4 {[%clk 0:00:53]} 37. Qa1 {[%clk 0:01:00]}  fxe4 {[%clk 0:00:14]} 38. Qa7+ {[%clk 0:01:00]}  Kf6 {[%clk 0:00:14]} 39. Qxh7 {[%clk 0:00:34]}  Bg7 {[%clk 0:00:14]} 40. Qh4+ {[%clk 0:00:34]}  Kf7 {[%clk 0:00:14]} 41. Nc8 {[%clk 0:00:30]}  Bf8 {[%clk 0:00:07]} 42. Qxe4 {[%clk 0:00:27]}  Qb1 {[%clk 0:00:06]} 43. Na7 {[%clk 0:00:21]}  Bd7 {[%clk 0:00:06]} 44. Nc6 {[%clk 0:00:21]}  Bf5 {[%clk 0:00:06]} 45. Qf3 {[%clk 0:00:20]}  Bh6 {[%clk 0:00:05]} 46. g4 {[%clk 0:00:20]}  e4 {[%clk 0:00:04]} 47. Qh3 {[%clk 0:00:14]}  exd3 {[%clk 0:00:04]} 48. gxf5 {[%clk 0:00:14]}  d2 {[%clk 0:00:05]} 49. Qxh6 {[%clk 0:00:14]}  Qxf5 {[%clk 0:00:03]} 50. Qxd2 {[%clk 0:00:13]}  c4 {[%clk 0:00:02]} 51. Bg2 {[%clk 0:00:09]}  Qb1+ {[%clk 0:00:01]} 52. Bf1 {[%clk 0:00:08]}  Qf5 {[%clk 0:00:02]} 53. Qe3 {[%clk 0:00:04]}  Qg4+ {[%clk 0:00:02]} 54. Qg3 {[%clk 0:00:04]}  Qe4 {[%clk 0:00:02]} 55. Nd8+ {[%clk 0:00:04]}  Ke7 {[%clk 0:00:02]} 56. Ne6 {[%clk 0:00:05]}  c3 {[%clk 0:00:02]} 57. Nf4 {[%clk 0:00:04]}  c2 {[%clk 0:00:02]} 58. Nxg6+ {[%clk 0:00:05]}  Kf6 {[%clk 0:00:02]} 59. Qxd6+ {[%clk 0:00:02]}  Kg5 {[%clk 0:00:02]} 60. Qg3+ {[%clk 0:00:02]}  Qg4 {[%clk 0:00:02]} 61. Ne5 {[%clk 0:00:02]}  Qxg3+ {[%clk 0:00:02]} 62. hxg3 {[%clk 0:00:03]}  c1=Q {[%clk 0:00:03]} 63. Nf3+ {[%clk 0:00:04]}  Kf6 {[%clk 0:00:03]} 64. Kg2 {[%clk 0:00:05]}  Ke7 {[%clk 0:00:03]} 65. Ng5 {[%clk 0:00:04]}  Qxg5 {[%clk 0:00:03]} 66. Be2 {[%clk 0:00:05]}  Qxd5+ {[%clk 0:00:03]} 67. Bf3 {[%clk 0:00:06]}  Qd6 {[%clk 0:00:04]} 68. Be4 {[%clk 0:00:05]}  Kf6 {[%clk 0:00:05]} 69. Bf3 {[%clk 0:00:06]}  Kg5 {[%clk 0:00:05]} 70. Bb7 {[%clk 0:00:06]}  Qb6 {[%clk 0:00:05]} 71. Bf3 {[%clk 0:00:07]}  Qd4 {[%clk 0:00:05]} 72. Bc6 {[%clk 0:00:07]}  Kf6 {[%clk 0:00:06]} 73. Bf3 {[%clk 0:00:08]}  Ke5 {[%clk 0:00:06]} 74. Bh5 {[%clk 0:00:08]}  Kd6 {[%clk 0:00:06]} 75. Bf3 {[%clk 0:00:08]}  Kc5 {[%clk 0:00:07]} 76. Bh5 {[%clk 0:00:09]}  Qg7 {[%clk 0:00:07]} 77. Bf3 {[%clk 0:00:10]}  Kd4 {[%clk 0:00:08]} 78. Bc6 {[%clk 0:00:10]}  Kd3 {[%clk 0:00:09]} 79. Bf3 {[%clk 0:00:11]}  Kd2 {[%clk 0:00:09]} 80. Bc6 {[%clk 0:00:11]}  Ke1 {[%clk 0:00:10]} 81. Bf3 {[%clk 0:00:11]}  Qd4 {[%clk 0:00:10]} 82. Bg4 {[%clk 0:00:11]}  Qxf2+ {[%clk 0:00:10]} 83. Kh3 {[%clk 0:00:12]}  Kd2 {[%clk 0:00:10]} 84. Kh4 {[%clk 0:00:12]}  Ke3 {[%clk 0:00:10]} 85. Bh5 {[%clk 0:00:12]}  Kd4 {[%clk 0:00:09]} 86. Kg4 {[%clk 0:00:10]}  Ke5 {[%clk 0:00:08]} 87. Kh4 {[%clk 0:00:10]}  Kf6 {[%clk 0:00:08]} 88. Kg4 {[%clk 0:00:10]}  Qe2+ {[%clk 0:00:07]} 89. Kh4 {[%clk 0:00:10]}  Qc4+ {[%clk 0:00:08]} 90. g4 {[%clk 0:00:10]}  Qf4 {[%clk 0:00:06]} 91. Be8 {[%clk 0:00:07]}  Qh2# {[%clk 0:00:06]} 0-1


[Site "https://www.chess.com"]

[Event "Titled Tuesday Blitz January 31 Late 2023"]
[White "Battlecruiser_Operational"]
[Black "Bryakin, Mikhail"]
[BlackFideId "4165314"]
[WhiteElo "2419"]
[BlackElo "2455"]
[Result "0-1"]
[Round "01"]
[TimeControl "180+2"]
[Date "2023.01.31"]
[WhiteClock "0:00:03"]
[BlackClock "0:01:19"]

1. d4 {[%clk 0:02:59]}  Nf6 {[%clk 0:02:54]} 2. c4 {[%clk 0:02:56]}  g6 {[%clk 0:02:53]} 3. Nc3 {[%clk 0:02:55]}  d5 {[%clk 0:02:53]} 4. cxd5 {[%clk 0:02:39]}  Nxd5 {[%clk 0:02:54]} 5. e4 {[%clk 0:02:39]}  Nxc3 {[%clk 0:02:54]} 6. bxc3 {[%clk 0:02:40]}  c5 {[%clk 0:02:50]} 7. Bc4 {[%clk 0:02:32]}  Bg7 {[%clk 0:02:50]} 8. Ne2 {[%clk 0:02:31]}  O-O {[%clk 0:02:47]} 9. O-O {[%clk 0:02:30]}  cxd4 {[%clk 0:02:44]} 10. cxd4 {[%clk 0:02:30]}  Nc6 {[%clk 0:02:44]} 11. Be3 {[%clk 0:02:29]}  b6 {[%clk 0:02:42]} 12. Rc1 {[%clk 0:02:23]}  Bb7 {[%clk 0:02:41]} 13. Bd5 {[%clk 0:02:09]}  Na5 {[%clk 0:02:41]} 14. Bxb7 {[%clk 0:02:07]}  Nxb7 {[%clk 0:02:42]} 15. Qa4 {[%clk 0:02:02]}  Nd6 {[%clk 0:02:28]} 16. f3 {[%clk 0:01:57]}  Qe8 {[%clk 0:02:26]} 17. Rc6 {[%clk 0:01:49]}  Qd7 {[%clk 0:02:21]} 18. Rfc1 {[%clk 0:01:47]}  h5 {[%clk 0:02:08]} 19. Bf4 {[%clk 0:01:30]}  Nb7 {[%clk 0:02:04]} 20. d5 {[%clk 0:00:43]}  Na5 {[%clk 0:01:59]} 21. R6c4 {[%clk 0:00:41]}  b5 {[%clk 0:01:57]} 22. Qxa5 {[%clk 0:00:39]}  bxc4 {[%clk 0:01:58]} 23. Rxc4 {[%clk 0:00:39]}  Rfc8 {[%clk 0:01:59]} 24. Rxc8+ {[%clk 0:00:30]}  Rxc8 {[%clk 0:02:00]} 25. h3 {[%clk 0:00:25]}  Qb7 {[%clk 0:01:55]} 26. Be3 {[%clk 0:00:23]}  Rc2 {[%clk 0:01:50]} 27. Nf4 {[%clk 0:00:16]}  Qc7 {[%clk 0:01:45]} 28. Qxa7 {[%clk 0:00:12]}  Qxa7 {[%clk 0:01:40]} 29. Bxa7 {[%clk 0:00:13]}  Rxa2 {[%clk 0:01:40]} 30. Be3 {[%clk 0:00:12]}  Ra3 {[%clk 0:01:39]} 31. Bf2 {[%clk 0:00:12]}  Be5 {[%clk 0:01:39]} 32. Ne2 {[%clk 0:00:10]}  Ra2 {[%clk 0:01:40]} 33. Ng3 {[%clk 0:00:06]}  Ra1+ {[%clk 0:01:37]} 34. Nf1 {[%clk 0:00:04]}  f5 {[%clk 0:01:37]} 35. exf5 {[%clk 0:00:03]}  gxf5 {[%clk 0:01:38]} 36. g3 {[%clk 0:00:03]}  Rd1 {[%clk 0:01:34]} 37. Kg2 {[%clk 0:00:03]}  Rxd5 {[%clk 0:01:27]} 38. Ne3 {[%clk 0:00:03]}  Rd2 {[%clk 0:01:26]} 39. Nxf5 {[%clk 0:00:02]}  e6 {[%clk 0:01:25]} 40. f4 {[%clk 0:00:01]}  Bxf4 {[%clk 0:01:18]} 41. gxf4 {[%clk 0:00:02]}  exf5 {[%clk 0:01:19]} 42. Kf3 {[%clk 0:00:02]}  Kf7 {[%clk 0:01:18]} 43. Be3 {[%clk 0:00:03]}  Rd3 {[%clk 0:01:18]} 44. Ke2 {[%clk 0:00:03]}  Rb3 {[%clk 0:01:19]} 45. h4 {[%clk 0:00:03]}  Ke6 {[%clk 0:01:19]} 0-1


[Site "https://www.chess.com"]

[Event "Titled Tuesday Blitz January 31 Late 2023"]
[White "Haszon, David"]
[Black "Girel, Joseph"]
[WhiteFideId "733610"]
[BlackFideId "36033561"]
[WhiteElo "2264"]
[BlackElo "2395"]
[Result "0-1"]
[Round "01"]
[TimeControl "180+2"]
[Date "2023.01.31"]
[WhiteClock "0:00:11"]
[BlackClock "0:01:34"]

1. e4 {[%clk 0:03:00]}  e5 {[%clk 0:02:55]} 2. Nf3 {[%clk 0:02:59]}  Nf6 {[%clk 0:02:55]} 3. d4 {[%clk 0:02:58]}  Nxe4 {[%clk 0:02:53]} 4. Bd3 {[%clk 0:02:56]}  Nc6 {[%clk 0:02:53]} 5. d5 {[%clk 0:02:42]}  Nc5 {[%clk 0:02:52]} 6. dxc6 {[%clk 0:02:40]}  e4 {[%clk 0:02:51]} 7. Bc4 {[%clk 0:02:21]}  exf3 {[%clk 0:02:41]} 8. Qxf3 {[%clk 0:02:13]}  Qe7+ {[%clk 0:02:39]} 9. Be3 {[%clk 0:02:06]}  dxc6 {[%clk 0:02:36]} 10. O-O {[%clk 0:02:04]}  Be6 {[%clk 0:02:21]} 11. Bxc5 {[%clk 0:01:55]}  Qxc5 {[%clk 0:02:22]} 12. Bxe6 {[%clk 0:01:55]}  fxe6 {[%clk 0:02:23]} 13. Rd1 {[%clk 0:01:17]}  Bd6 {[%clk 0:02:20]} 14. Nc3 {[%clk 0:01:04]}  O-O-O {[%clk 0:02:17]} 15. Re1 {[%clk 0:00:56]}  Qf5 {[%clk 0:02:13]} 16. Qe4 {[%clk 0:00:36]}  Kb8 {[%clk 0:02:12]} 17. Qxe6 {[%clk 0:00:30]}  Qxc2 {[%clk 0:02:09]} 18. Re2 {[%clk 0:00:30]}  Qd3 {[%clk 0:02:07]} 19. Rae1 {[%clk 0:00:28]}  Rhf8 {[%clk 0:02:03]} 20. g3 {[%clk 0:00:20]}  a6 {[%clk 0:02:01]} 21. Ne4 {[%clk 0:00:20]}  Bb4 {[%clk 0:01:59]} 22. Nc3 {[%clk 0:00:18]}  Bxc3 {[%clk 0:01:56]} 23. bxc3 {[%clk 0:00:19]}  Qxc3 {[%clk 0:01:56]} 24. Qe7 {[%clk 0:00:18]}  h5 {[%clk 0:01:53]} 25. h4 {[%clk 0:00:18]}  Qf6 {[%clk 0:01:50]} 26. Qe3 {[%clk 0:00:18]}  g6 {[%clk 0:01:49]} 27. a4 {[%clk 0:00:17]}  Rd5 {[%clk 0:01:48]} 28. Rb1 {[%clk 0:00:17]}  g5 {[%clk 0:01:44]} 29. Reb2 {[%clk 0:00:17]}  b5 {[%clk 0:01:40]} 30. axb5 {[%clk 0:00:16]}  cxb5 {[%clk 0:01:41]} 31. hxg5 {[%clk 0:00:14]}  Qxg5 {[%clk 0:01:42]} 32. Qe4 {[%clk 0:00:12]}  h4 {[%clk 0:01:36]} 33. Rb3 {[%clk 0:00:12]}  hxg3 {[%clk 0:01:35]} 34. Rxg3 {[%clk 0:00:13]}  Qf5 {[%clk 0:01:35]} 35. Qe2 {[%clk 0:00:11]}  Qxb1+ {[%clk 0:01:34]} 0-1


[Site "https://www.chess.com"]

[Event "Titled Tuesday Blitz January 31 Late 2023"]
[White "Talibov, Shiroghlan"]
[Black "Della Corte, Alessandro"]
[WhiteFideId "13429078"]
[BlackFideId "813540"]
[WhiteElo "2359"]
[BlackElo "2160"]
[Result "1-0"]
[Round "01"]
[TimeControl "180+2"]
[Date "2023.01.31"]
[WhiteClock "0:01:33"]
[BlackClock "0:01:48"]

1. Nf3 {[%clk 0:02:52]}  d5 {[%clk 0:02:59]} 2. d4 {[%clk 0:02:39]}  Nf6 {[%clk 0:02:59]} 3. c4 {[%clk 0:02:39]}  e6 {[%clk 0:02:59]} 4. Nc3 {[%clk 0:02:38]}  Be7 {[%clk 0:03:00]} 5. g3 {[%clk 0:02:36]}  O-O {[%clk 0:03:00]} 6. Bg2 {[%clk 0:02:35]}  Nbd7 {[%clk 0:02:59]} 7. O-O {[%clk 0:02:33]}  c6 {[%clk 0:03:00]} 8. b3 {[%clk 0:02:32]}  b6 {[%clk 0:02:59]} 9. Bb2 {[%clk 0:02:32]}  Ba6 {[%clk 0:02:59]} 10. Nd2 {[%clk 0:02:28]}  Rc8 {[%clk 0:02:58]} 11. e4 {[%clk 0:02:27]}  c5 {[%clk 0:02:55]} 12. exd5 {[%clk 0:02:09]}  exd5 {[%clk 0:02:28]} 13. Nxd5 {[%clk 0:02:07]}  Nxd5 {[%clk 0:02:25]} 14. Bxd5 {[%clk 0:02:08]}  Bf6 {[%clk 0:02:23]} 15. Ne4 {[%clk 0:02:07]}  Bxd4 {[%clk 0:02:21]} 16. Bxd4 {[%clk 0:02:06]}  cxd4 {[%clk 0:02:21]} 17. Qxd4 {[%clk 0:02:06]}  Nf6 {[%clk 0:02:14]} 18. Nxf6+ {[%clk 0:02:05]}  Qxf6 {[%clk 0:02:15]} 19. Qxf6 {[%clk 0:02:04]}  gxf6 {[%clk 0:02:16]} 20. a4 {[%clk 0:02:04]}  Rce8 {[%clk 0:02:12]} 21. Rfe1 {[%clk 0:02:03]}  Re5 {[%clk 0:02:12]} 22. f4 {[%clk 0:02:02]}  Ree8 {[%clk 0:02:12]} 23. Kf2 {[%clk 0:02:01]}  Bc8 {[%clk 0:02:12]} 24. Rxe8 {[%clk 0:02:00]}  Rxe8 {[%clk 0:02:12]} 25. Re1 {[%clk 0:02:01]}  Rxe1 {[%clk 0:02:11]} 26. Kxe1 {[%clk 0:02:02]}  a5 {[%clk 0:02:11]} 27. Kd2 {[%clk 0:02:01]}  Kf8 {[%clk 0:02:12]} 28. Kc3 {[%clk 0:02:00]}  Ke7 {[%clk 0:02:13]} 29. b4 {[%clk 0:02:01]}  Bd7 {[%clk 0:02:08]} 30. b5 {[%clk 0:01:37]}  Be8 {[%clk 0:01:56]} 31. Kd4 {[%clk 0:01:33]}  Kd6 {[%clk 0:01:56]} 32. Be4 {[%clk 0:01:33]}  h6 {[%clk 0:01:56]} 33. Bf5 {[%clk 0:01:34]}  Bd7 {[%clk 0:01:47]} 34. Bxd7 {[%clk 0:01:33]}  Kxd7 {[%clk 0:01:48]} 35. c5 {[%clk 0:01:34]}  Kc7 {[%clk 0:01:48]} 36. Kd5 {[%clk 0:01:33]} 1-0


[Site "https://www.chess.com"]

[Event "Titled Tuesday Blitz January 31 Late 2023"]
[White "Suarez, Mauricio Josue"]
[Black "Trost, Edvin"]
[WhiteFideId "144258"]
[BlackFideId "1729519"]
[WhiteElo "2164"]
[BlackElo "2399"]
[Result "0-1"]
[Round "01"]
[TimeControl "180+2"]
[Date "2023.01.31"]
[WhiteClock "0:00:12"]
[BlackClock "0:01:35"]

1. d4 {[%clk 0:03:00]}  Nc6 {[%clk 0:02:52]} 2. Nf3 {[%clk 0:02:59]}  e6 {[%clk 0:02:50]} 3. c4 {[%clk 0:02:59]}  Nf6 {[%clk 0:02:49]} 4. Nc3 {[%clk 0:02:58]}  Bb4 {[%clk 0:02:49]} 5. Bd2 {[%clk 0:02:57]}  O-O {[%clk 0:02:48]} 6. e3 {[%clk 0:02:55]}  d5 {[%clk 0:02:48]} 7. a3 {[%clk 0:02:53]}  Bxc3 {[%clk 0:02:48]} 8. Bxc3 {[%clk 0:02:54]}  Ne4 {[%clk 0:02:48]} 9. Rc1 {[%clk 0:02:53]}  Qe7 {[%clk 0:02:47]} 10. Bd3 {[%clk 0:02:53]}  Nxc3 {[%clk 0:02:48]} 11. Rxc3 {[%clk 0:02:53]}  Rd8 {[%clk 0:02:48]} 12. cxd5 {[%clk 0:02:45]}  exd5 {[%clk 0:02:48]} 13. Bb5 {[%clk 0:02:43]}  Nb8 {[%clk 0:02:46]} 14. h3 {[%clk 0:02:38]}  Bf5 {[%clk 0:02:47]} 15. O-O {[%clk 0:02:37]}  c6 {[%clk 0:02:47]} 16. Bd3 {[%clk 0:02:37]}  Bxd3 {[%clk 0:02:47]} 17. Qxd3 {[%clk 0:02:36]}  Nd7 {[%clk 0:02:47]} 18. b4 {[%clk 0:02:35]}  a6 {[%clk 0:02:48]} 19. Rb1 {[%clk 0:02:34]}  Nf6 {[%clk 0:02:44]} 20. a4 {[%clk 0:02:24]}  Ne4 {[%clk 0:02:44]} 21. Rc2 {[%clk 0:02:19]}  Nd6 {[%clk 0:02:41]} 22. Rc5 {[%clk 0:01:57]}  g6 {[%clk 0:02:38]} 23. Ne5 {[%clk 0:01:54]}  f6 {[%clk 0:02:37]} 24. Nf3 {[%clk 0:01:50]}  Kg7 {[%clk 0:02:37]} 25. Ne1 {[%clk 0:01:48]}  Nc4 {[%clk 0:02:35]} 26. b5 {[%clk 0:01:37]}  cxb5 {[%clk 0:02:33]} 27. axb5 {[%clk 0:01:38]}  b6 {[%clk 0:02:34]} 28. Rc6 {[%clk 0:01:34]}  a5 {[%clk 0:02:34]} 29. e4 {[%clk 0:01:26]}  Nd6 {[%clk 0:01:57]} 30. exd5 {[%clk 0:01:23]}  a4 {[%clk 0:01:57]} 31. Qa3 {[%clk 0:01:20]}  Qd7 {[%clk 0:01:52]} 32. Rxb6 {[%clk 0:01:06]}  Nc4 {[%clk 0:01:51]} 33. Qc5 {[%clk 0:01:04]}  Nxb6 {[%clk 0:01:50]} 34. Qxb6 {[%clk 0:01:05]}  a3 {[%clk 0:01:51]} 35. Nd3 {[%clk 0:00:59]}  a2 {[%clk 0:01:51]} 36. Ra1 {[%clk 0:00:59]}  Qxd5 {[%clk 0:01:51]} 37. Nc5 {[%clk 0:00:59]}  Rd6 {[%clk 0:01:43]} 38. Qc7+ {[%clk 0:00:57]}  Kh6 {[%clk 0:01:41]} 39. b6 {[%clk 0:00:18]}  Qxd4 {[%clk 0:01:41]} 40. Qxd6 {[%clk 0:00:11]}  Qxd6 {[%clk 0:01:36]} 41. b7 {[%clk 0:00:12]}  Rb8 {[%clk 0:01:35]} 0-1


[Site "https://www.chess.com"]

[Event "Titled Tuesday Blitz January 31 Late 2023"]
[White "Papp, Petra"]
[Black "Fernandez Guillen, Ernesto J."]
[WhiteFideId "739049"]
[BlackFideId "3512428"]
[WhiteElo "2343"]
[BlackElo "2477"]
[Result "0-1"]
[Round "01"]
[TimeControl "180+2"]
[Date "2023.01.31"]
[WhiteClock "0:01:26"]
[BlackClock "0:01:13"]

1. e4 {[%clk 0:02:59]}  e5 {[%clk 0:02:56]} 2. Nf3 {[%clk 0:02:57]}  Nc6 {[%clk 0:02:49]} 3. d4 {[%clk 0:02:57]}  exd4 {[%clk 0:02:49]} 4. Nxd4 {[%clk 0:02:57]}  g6 {[%clk 0:02:49]} 5. Nc3 {[%clk 0:02:57]}  Bg7 {[%clk 0:02:49]} 6. Be3 {[%clk 0:02:57]}  Nge7 {[%clk 0:02:47]} 7. f3 {[%clk 0:02:50]}  O-O {[%clk 0:02:43]} 8. Qd2 {[%clk 0:02:50]}  d5 {[%clk 0:02:42]} 9. exd5 {[%clk 0:02:48]}  Nxd5 {[%clk 0:02:42]} 10. Nxd5 {[%clk 0:02:48]}  Qxd5 {[%clk 0:02:42]} 11. O-O-O {[%clk 0:02:41]}  Qxa2 {[%clk 0:02:39]} 12. c3 {[%clk 0:02:38]}  Na5 {[%clk 0:02:23]} 13. Kc2 {[%clk 0:02:13]}  c5 {[%clk 0:02:16]} 14. Nb5 {[%clk 0:01:59]}  Bf5+ {[%clk 0:01:47]} 15. Bd3 {[%clk 0:01:57]}  Rad8 {[%clk 0:01:37]} 16. Na3 {[%clk 0:01:46]}  Rxd3 {[%clk 0:01:25]} 17. Qxd3 {[%clk 0:01:46]}  Qb3+ {[%clk 0:01:19]} 18. Kc1 {[%clk 0:01:44]}  Bxd3 {[%clk 0:01:17]} 19. Rxd3 {[%clk 0:01:44]}  Nc4 {[%clk 0:01:17]} 20. Nxc4 {[%clk 0:01:40]}  Qxc4 {[%clk 0:01:18]} 21. Rhd1 {[%clk 0:01:39]}  h6 {[%clk 0:01:16]} 22. Kc2 {[%clk 0:01:36]}  b6 {[%clk 0:01:15]} 23. b3 {[%clk 0:01:35]}  Qa6 {[%clk 0:01:15]} 24. Kb2 {[%clk 0:01:33]}  c4 {[%clk 0:01:16]} 25. Rd7 {[%clk 0:01:27]}  Qb5 {[%clk 0:01:14]} 26. b4 {[%clk 0:01:26]}  Qxb4+ {[%clk 0:01:13]} 0-1


[Site "https://www.chess.com"]

[Event "Titled Tuesday Blitz January 31 Late 2023"]
[White "Santos Ruiz, Miguel"]
[Black "Ansh M Shah"]
[WhiteFideId "22291482"]
[BlackFideId "25033379"]
[WhiteElo "2590"]
[BlackElo "2171"]
[Result "1-0"]
[Round "01"]
[TimeControl "180+2"]
[Date "2023.01.31"]
[WhiteClock "0:01:01"]
[BlackClock "0:00:03"]

1. e4 {[%clk 0:03:00]}  c6 {[%clk 0:03:00]} 2. d4 {[%clk 0:03:00]}  d5 {[%clk 0:03:00]} 3. exd5 {[%clk 0:02:59]}  cxd5 {[%clk 0:03:00]} 4. Bd3 {[%clk 0:03:00]}  Nc6 {[%clk 0:03:01]} 5. c3 {[%clk 0:03:00]}  Nf6 {[%clk 0:03:01]} 6. Bf4 {[%clk 0:03:00]}  Bg4 {[%clk 0:03:02]} 7. Nf3 {[%clk 0:02:59]}  Bxf3 {[%clk 0:02:51]} 8. Qxf3 {[%clk 0:02:58]}  e6 {[%clk 0:02:52]} 9. O-O {[%clk 0:02:52]}  Bd6 {[%clk 0:02:51]} 10. Nd2 {[%clk 0:02:51]}  Bxf4 {[%clk 0:02:51]} 11. Qxf4 {[%clk 0:02:51]}  O-O {[%clk 0:02:51]} 12. Nf3 {[%clk 0:02:50]}  Rc8 {[%clk 0:02:51]} 13. Rfe1 {[%clk 0:02:43]}  Qc7 {[%clk 0:02:51]} 14. Qh4 {[%clk 0:02:39]}  h6 {[%clk 0:02:50]} 15. Ne5 {[%clk 0:02:38]}  Nxe5 {[%clk 0:02:50]} 16. Rxe5 {[%clk 0:02:35]}  a6 {[%clk 0:02:46]} 17. Rae1 {[%clk 0:02:24]}  b5 {[%clk 0:02:46]} 18. a3 {[%clk 0:02:19]}  Rfe8 {[%clk 0:02:16]} 19. f4 {[%clk 0:02:08]}  Rb8 {[%clk 0:01:38]} 20. Qg3 {[%clk 0:01:24]}  a5 {[%clk 0:00:24]} 21. f5 {[%clk 0:01:23]}  Qb6 {[%clk 0:00:22]} 22. fxe6 {[%clk 0:01:22]}  Rxe6 {[%clk 0:00:21]} 23. Rxe6 {[%clk 0:01:22]}  fxe6 {[%clk 0:00:22]} 24. Rxe6 {[%clk 0:01:18]}  Qxe6 {[%clk 0:00:22]} 25. Qxb8+ {[%clk 0:01:18]}  Kf7 {[%clk 0:00:20]} 26. Qe5 {[%clk 0:01:14]}  Qg4 {[%clk 0:00:17]} 27. Qe2 {[%clk 0:01:10]}  Qd7 {[%clk 0:00:14]} 28. Bxb5 {[%clk 0:01:09]}  Qb7 {[%clk 0:00:13]} 29. a4 {[%clk 0:01:08]}  Ne4 {[%clk 0:00:13]} 30. Bd3 {[%clk 0:01:08]}  Nf6 {[%clk 0:00:10]} 31. Bc2 {[%clk 0:01:04]}  Kf8 {[%clk 0:00:09]} 32. Bd3 {[%clk 0:01:04]}  Qb6 {[%clk 0:00:09]} 33. Bb5 {[%clk 0:01:04]}  Qd6 {[%clk 0:00:08]} 34. g3 {[%clk 0:01:03]}  Qc7 {[%clk 0:00:07]} 35. Qe5 {[%clk 0:01:03]}  Qd8 {[%clk 0:00:02]} 36. b4 {[%clk 0:01:02]}  axb4 {[%clk 0:00:02]} 37. cxb4 {[%clk 0:01:03]}  Kg8 {[%clk 0:00:02]} 38. a5 {[%clk 0:01:02]}  Kh8 {[%clk 0:00:03]} 39. a6 {[%clk 0:01:02]}  Qf8 {[%clk 0:00:03]} 40. a7 {[%clk 0:01:01]}  Qxb4 {[%clk 0:00:04]} 41. a8=Q+ {[%clk 0:01:01]}  Kh7 {[%clk 0:00:05]} 42. Bd3+ {[%clk 0:01:01]}  g6 {[%clk 0:00:03]} 43. Qc7+ {[%clk 0:01:01]} 1-0


[Site "https://www.chess.com"]